fUST/lending_fUST_20250524
["ID","MTS","AMOUNT","RATE_DAILY","PERIOD"]
[362155909,1748041844193,-430.0,0.00018816,2]
[362155910,1748041844203,-430.0,0.00018816,2]
[362155911,1748041844213,-430.0,0.00018816,2]
[362155913,1748041844223,-430.0,0.00018816,2]
[362155914,1748041844233,-430.0,0.00018816,2]
[362155915,1748041844243,-430.0,0.00018816,2]
[362155916,1748041844252,-430.0,0.00018816,2]
[362155917,1748041844261,-430.0,0.00018816,2]
[362155919,1748041844272,-430.0,0.00018816,2]
[362155924,1748041844369,-335.68014135,0.00018816,2]
[362155925,1748041844379,-430.0,0.00018816,2]
[362155927,1748041844390,-430.0,0.00018816,2]
[362155928,1748041844400,-430.0,0.00018816,2]
[362155929,1748041844410,-430.0,0.00018816,2]
[362155930,1748041844420,-430.0,0.00018816,2]
[362155931,1748041844430,-430.0,0.00018816,2]
[362155932,1748041844440,-490.0,0.00018816,2]
[362155934,1748041844449,-430.0,0.00018816,2]
[362155935,1748041844459,-430.0,0.00018816,2]
[362155936,1748041844468,-430.0,0.00018816,2]
[362155937,1748041844478,-430.0,0.00018816,2]
[362155938,1748041844487,-430.0,0.00018816,2]
[362155939,1748041844497,-430.0,0.00018816,2]
[362155940,1748041844510,-430.0,0.00018816,2]
[362155941,1748041844520,-500.67842696,0.00018816,2]
[362155942,1748041844530,-430.0,0.00018818,2]
[362155943,1748041844540,-430.0,0.00018818,2]
[362155945,1748041844550,-549.93,0.00018818,2]
[362155946,1748041844560,-430.0,0.00018818,2]
[362155947,1748041844569,-458.74988753,0.00018818,2]
[362155948,1748041844579,-430.0,0.00018818,2]
[362155949,1748041844590,-435.27346953,0.00018818,2]
[362155950,1748041844602,-490.0,0.00018818,2]
[362155951,1748041844611,-342.63731051,0.00018818,2]
[362155952,1748041844621,-430.0,0.00018818,2]
[362155953,1748041844630,-490.0,0.00018818,2]
[362155954,1748041844641,-490.0,0.00018818,2]
[362155955,1748041844651,-430.0,0.00018818,2]
[362155956,1748041844661,-430.0,0.00018818,2]
[362155958,1748041844673,-430.0,0.00018818,2]
[362155959,1748041844684,-430.0,0.00018818,2]
[362155960,1748041844694,-449.95,0.00018818,2]
[362155961,1748041844704,-430.0,0.00018818,2]
[362155962,1748041844714,-430.0,0.00018818,2]
[362155964,1748041844724,-271.69572332,0.00018818,2]
[362155965,1748041844733,-430.0,0.00018818,2]
[362155966,1748041844743,-430.0,0.00018818,2]
[362155967,1748041844753,-430.0,0.00018818,2]
[362155968,1748041844763,-500.33657099,0.00018863,2]
[362155969,1748041844773,-500.0,0.00018863,2]
[362155970,1748041844784,-294.79944725,0.000189,2]
[362155972,1748041844793,-500.0,0.0001896,2]
[362155973,1748041844803,-500.0,0.00018983,2]
[362155974,1748041844813,-500.0,0.00018983,2]
[362155975,1748041844822,-418.49676619,0.00018983,2]
[362155976,1748041844831,-500.0,0.00018985,2]
[362155977,1748041844842,-430.0,0.00019087,2]
[362155978,1748041844852,-430.0,0.00019087,2]
[362155979,1748041844862,-430.0,0.00019087,2]
[362155980,1748041844872,-430.0,0.00019087,2]
[362155981,1748041844881,-430.0,0.00019087,2]
[362155982,1748041844892,-430.0,0.00019087,2]
[362155983,1748041844902,-595.25,0.00019087,2]
[362155984,1748041844912,-430.0,0.00019087,2]
[362155985,1748041844922,-431.07,0.00019087,2]
[362155986,1748041844932,-430.0,0.00019087,2]
[362155987,1748041844942,-430.0,0.00019087,2]
[362155988,1748041844951,-430.0,0.00019087,2]
[362155989,1748041844961,-430.0,0.00019087,2]
[362155990,1748041844971,-430.0,0.00019087,2]
[362155992,1748041844981,-430.0,0.00019087,2]
[362155993,1748041844990,-430.0,0.00019088,2]
[362155994,1748041845000,-430.0,0.00019088,2]
[362155995,1748041845010,-430.0,0.00019088,2]
[362155996,1748041845020,-430.0,0.00019088,2]
[362155997,1748041845029,-430.0,0.00019088,2]
[362155999,1748041845039,-430.0,0.00019088,2]
[362156000,1748041845048,-430.0,0.00019088,2]
[362156001,1748041845059,-303.63,0.00019088,2]
[362156002,1748041845069,-430.0,0.00019088,2]
[362156003,1748041845078,-430.0,0.00019088,2]
[362156004,1748041845088,-430.0,0.00019088,2]
[362156005,1748041845097,-494.08,0.00019088,2]
[362156006,1748041845108,-430.0,0.00019088,2]
[362156007,1748041845120,-430.86,0.00019088,2]
[362156008,1748041845140,-430.0,0.00019088,2]
[362156009,1748041845158,-430.0,0.00019088,2]
[362156010,1748041845171,-187.56,0.00019088,2]
[362156011,1748041845188,-430.0,0.00019088,2]
[362156012,1748041845205,-430.0,0.00019089,2]
[362156014,1748041845223,-430.0,0.00019089,2]
[362156015,1748041845239,-430.0,0.00019089,2]
[362156016,1748041845258,-430.0,0.00019089,2]
[362156017,1748041845274,-331.94647272,0.00019089,2]
[362156019,1748041845290,-365.31,0.00019089,2]
[362156020,1748041845307,-434.69325037,0.00019089,2]
[362156021,1748041845323,-545.27,0.00019089,2]
[362156022,1748041845338,-430.0,0.00019089,2]
[362156023,1748041845351,-430.0,0.00019089,2]
[362156025,1748041845367,-430.0,0.00019089,2]
[362156026,1748041845383,-430.0,0.00019089,2]
[362156027,1748041845400,-430.0,0.0001909,2]
[362156029,1748041845417,-550.74012256,0.0001909,2]
[362156030,1748041845438,-430.0,0.0001909,2]
[362156031,1748041845453,-430.0,0.0001909,2]
[362156032,1748041845465,-450.14059653,0.0001909,2]
[362156034,1748041845479,-430.0,0.0001909,2]
[362156035,1748041845497,-303.01,0.0001909,2]
[362156036,1748041845514,-430.0,0.0001909,2]
[362156038,1748041845527,-441.49321264,0.0001909,2]
[362156039,1748041845541,-430.0,0.0001909,2]
[362156040,1748041845557,-430.0,0.0001909,2]
[362156042,1748041845569,-430.0,0.0001909,2]
[362156043,1748041845583,-430.0,0.0001909,2]
[362156044,1748041845599,-430.0,0.0001909,2]
[362156045,1748041845614,-156.73273635,0.0001909,2]
[362156046,1748041845627,-430.0,0.0001909,2]
[362156047,1748041845641,-439.45953224,0.0001909,2]
[362156048,1748041845655,-260.99,0.0001909,2]
[362156050,1748041845669,-430.0,0.0001909,2]
[362156051,1748041845685,-553.46,0.0001909,2]
[362156052,1748041845700,-430.0,0.0001909,2]
[362156053,1748041845714,-430.0,0.0001909,2]
[362156054,1748041845728,-430.0,0.0001909,2]
[362156056,1748041845741,-430.0,0.0001909,2]
[362156057,1748041845755,-430.0,0.0001909,2]
[362156058,1748041845769,-452.53,0.0001909,2]
[362156059,1748041845783,-430.0,0.0001909,2]
[362156060,1748041845797,-430.0,0.0001909,2]
[362156061,1748041845812,-430.0,0.0001909,2]
[362156062,1748041845825,-165.80184782,0.0001909,2]
[362156064,1748041845840,-430.0,0.0001909,2]
[362156065,1748041845853,-430.0,0.0001909,2]
[362156066,1748041845867,-430.0,0.0001909,2]
[362156068,1748041845881,-430.0,0.0001909,2]
[362156069,1748041845896,-430.0,0.0001909,2]
[362156070,1748041845909,-430.0,0.0001909,2]
[362156071,1748041845923,-478.17,0.0001909,2]
[362156072,1748041845936,-430.0,0.0001909,2]
[362156073,1748041845951,-435.07019828,0.0001909,2]
[362156074,1748041845966,-430.0,0.0001909,2]
[362156075,1748041845981,-436.29107751,0.0001909,2]
[362156077,1748041845994,-430.0,0.0001909,2]
[362156078,1748041846007,-430.0,0.0001909,2]
[362156079,1748041846022,-430.0,0.0001909,2]
[362156080,1748041846036,-430.0,0.0001909,2]
[362156081,1748041846049,-430.0,0.0001909,2]
[362156083,1748041846063,-436.77263108,0.0001909,2]
[362156085,1748041846076,-430.0,0.0001909,2]
[362156086,1748041846090,-430.0,0.0001909,2]
[362156087,1748041846103,-430.0,0.0001909,2]
[362156088,1748041846118,-430.0,0.0001909,2]
[362156089,1748041846132,-430.0,0.0001909,2]
[362156091,1748041846146,-397.86,0.0001909,2]
[362156092,1748041846161,-430.0,0.0001909,2]
[362156093,1748041846176,-179.16,0.0001909,2]
[362156094,1748041846187,-430.0,0.0001909,2]
[362156095,1748041846330,-430.0,0.0001909,2]
[362156098,1748041846356,-430.0,0.0001909,2]
[362156099,1748041846366,-430.0,0.0001909,2]
[362156100,1748041846376,-430.0,0.0001909,2]
[362156101,1748041846386,-430.0,0.0001909,2]
[362156103,1748041846396,-437.91963661,0.0001909,2]
[362156104,1748041846405,-430.0,0.0001909,2]
[362156105,1748041846415,-430.0,0.0001909,2]
[362156106,1748041846425,-430.0,0.0001909,2]
[362156107,1748041846435,-458.8731213,0.0001909,2]
[362156109,1748041846445,-430.0,0.0001909,2]
[362156111,1748041846455,-328.32649679,0.0001909,2]
[362156112,1748041846465,-430.0,0.0001909,2]
[362156113,1748041846475,-430.0,0.0001909,2]
[362156114,1748041846485,-430.0,0.0001909,2]
[362156115,1748041846495,-430.0,0.0001909,2]
[362156117,1748041846504,-430.0,0.0001909,2]
[362156118,1748041846514,-435.92001821,0.0001909,2]
[362156119,1748041846524,-430.0,0.0001909,2]
[362156120,1748041846533,-433.07122122,0.0001909,2]
[362156121,1748041846542,-430.0,0.0001909,2]
[362156122,1748041846552,-303.52,0.0001909,2]
[362156123,1748041846561,-430.0,0.0001909,2]
[362156124,1748041846571,-430.0,0.0001909,2]
[362156125,1748041846581,-430.0,0.0001909,2]
[362156126,1748041846591,-474.68,0.0001909,2]
[362156127,1748041846603,-430.0,0.0001909,2]
[362156128,1748041846613,-430.0,0.0001909,2]
[362156129,1748041846622,-430.0,0.0001909,2]
[362156130,1748041846631,-430.0,0.0001909,2]
[362156131,1748041846641,-430.0,0.0001909,2]
[362156132,1748041846651,-430.0,0.0001909,2]
[362156133,1748041846660,-219.84,0.0001909,2]
[362156134,1748041846670,-344.86793959,0.0001909,2]
[362156135,1748041846681,-500.0,0.0001909,2]
[362156136,1748041846690,-430.0,0.0001909,2]
[362156137,1748041846699,-430.0,0.0001909,2]
[362156138,1748041846709,-478.05264455,0.0001909,2]
[362156139,1748041846719,-430.0,0.0001909,2]
[362156140,1748041846729,-437.81707674,0.0001909,2]
[362156141,1748041846739,-573.3,0.0001909,2]
[362156142,1748041846748,-430.0,0.0001909,2]
[362156143,1748041846758,-430.0,0.0001909,2]
[362156144,1748041846767,-430.0,0.0001909,2]
[362156145,1748041846777,-430.0,0.0001909,2]
[362156146,1748041846787,-435.48156881,0.0001909,2]
[362156147,1748041846797,-440.69683744,0.0001909,2]
[362156148,1748041846808,-430.0,0.0001909,2]
[362156149,1748041846819,-430.0,0.0001909,2]
[362156151,1748041846828,-430.0,0.0001909,2]
[362156153,1748041846838,-430.0,0.0001909,2]
[362156155,1748041846848,-430.0,0.0001909,2]
[362156156,1748041846857,-284.8395393,0.0001909,2]
[362156157,1748041846868,-430.0,0.0001909,2]
[362156158,1748041846877,-433.56700865,0.0001909,2]
[362156159,1748041846888,-189.22247947,0.0001909,2]
[362156161,1748041846897,-432.91792797,0.0001909,2]
[362156163,1748041846907,-430.0,0.0001909,2]
[362156164,1748041846918,-430.0,0.00019092,2]
[362156165,1748041846929,-294.79944703,0.00019107,2]
[362156166,1748041846938,-436.15753342,0.00019178,2]
[362156167,1748041846948,-500.0,0.00019281,2]
[362156169,1748041846958,-294.79944703,0.00019314,2]
[362156170,1748041846967,-430.0,0.00019361,2]
[362156171,1748041846977,-430.0,0.00019361,2]
[362156172,1748041846987,-430.0,0.00019361,2]
[362156174,1748041846996,-430.0,0.00019361,2]
[362156175,1748041847005,-430.0,0.00019361,2]
[362156176,1748041847016,-430.0,0.00019361,2]
[362156177,1748041847026,-595.25,0.00019361,2]
[362156178,1748041847035,-430.0,0.00019361,2]
[362156180,1748041847045,-431.07,0.00019361,2]
[362156181,1748041847054,-430.0,0.00019361,2]
[362156182,1748041847063,-430.0,0.00019361,2]
[362156183,1748041847074,-430.0,0.00019361,2]
[362156184,1748041847084,-430.0,0.00019361,2]
[362156186,1748041847095,-430.0,0.00019361,2]
[362156187,1748041847104,-430.0,0.00019361,2]
[362156188,1748041847114,-430.0,0.00019362,2]
[362156189,1748041847123,-430.0,0.00019362,2]
[362156191,1748041847133,-430.0,0.00019362,2]
[362156192,1748041847142,-430.0,0.00019362,2]
[362156193,1748041847152,-430.0,0.00019362,2]
[362156194,1748041847162,-430.0,0.00019362,2]
[362156195,1748041847172,-430.0,0.00019362,2]
[362156197,1748041847183,-430.0,0.00019362,2]
[362156198,1748041847193,-430.0,0.00019362,2]
[362156199,1748041847203,-430.0,0.00019362,2]
[362156200,1748041847213,-430.0,0.00019362,2]
[362156201,1748041847223,-430.0,0.00019362,2]
[362156203,1748041847232,-430.0,0.00019362,2]
[362156204,1748041847242,-430.0,0.00019362,2]
[362156205,1748041847251,-471.69,0.00019363,2]
[362156206,1748041847261,-430.0,0.00019363,2]
[362156208,1748041847270,-430.0,0.00019363,2]
[362156209,1748041847280,-545.27,0.00019363,2]
[362156210,1748041847290,-430.0,0.00019363,2]
[362156211,1748041847299,-430.0,0.00019363,2]
[362156212,1748041847309,-430.0,0.00019363,2]
[362156214,1748041847319,-237.8,0.00019363,2]
[362156215,1748041847329,-436.97806649,0.00019364,2]
[362156216,1748041847339,-444.46000036,0.00019364,2]
[362156217,1748041847349,-430.0,0.00019364,2]
[362156218,1748041847359,-417.84,0.00019364,2]
[362156220,1748041847369,-430.0,0.00019364,2]
[362156221,1748041847379,-430.0,0.00019364,2]
[362156222,1748041847389,-430.0,0.00019364,2]
[362156223,1748041847399,-450.0,0.00019364,2]
[362156225,1748041847409,-156.74,0.00019364,2]
[362156226,1748041847419,-430.0,0.00019364,2]
[362156227,1748041847429,-310.2,0.00019364,2]
[362156228,1748041847439,-430.0,0.00019364,2]
[362156229,1748041847448,-430.0,0.00019364,2]
[362156231,1748041847457,-376.73957545,0.00019364,2]
[362156232,1748041847467,-430.0,0.00019364,2]
[362156233,1748041847477,-430.0,0.00019364,2]
[362156234,1748041847487,-430.0,0.00019364,2]
[362156235,1748041847496,-430.0,0.00019364,2]
[362156237,1748041847507,-430.0,0.00019364,2]
[362156238,1748041847516,-430.0,0.00019364,2]
[362156239,1748041847526,-474.68,0.00019364,2]
[362156240,1748041847536,-430.0,0.00019364,2]
[362156242,1748041847546,-430.0,0.00019364,2]
[362156243,1748041847556,-430.0,0.00019364,2]
[362156244,1748041847566,-430.0,0.00019364,2]
[362156245,1748041847576,-500.0,0.00019364,2]
[362156246,1748041847586,-430.0,0.00019364,2]
[362156248,1748041847599,-430.0,0.00019364,2]
[362156249,1748041847609,-430.0,0.00019364,2]
[362156250,1748041847620,-430.0,0.00019364,2]
[362156251,1748041847630,-430.0,0.00019364,2]
[362156252,1748041847642,-430.0,0.00019364,2]
[362156254,1748041847652,-430.0,0.00019364,2]
[362156255,1748041847662,-430.0,0.00019364,2]
[362156256,1748041847675,-211.6,0.00019364,2]
[362156257,1748041847687,-430.0,0.00019364,2]
[362156258,1748041847696,-430.0,0.00019364,2]
[362156260,1748041847706,-430.0,0.00019364,2]
[362156261,1748041847716,-430.0,0.00019366,2]
[362156262,1748041847727,-500.0,0.00019411,2]
[362156263,1748041847737,-294.79944703,0.00019521,2]
[362156265,1748041847747,-400.0,0.00019532,2]
[362156266,1748041847758,-400.0,0.00019532,2]
[362156267,1748041847768,-504.87544928,0.00019532,2]
[362156268,1748041847778,-400.0,0.00019532,2]
[362156269,1748041847788,-430.0,0.00019533,2]
[362156271,1748041847797,-400.0,0.00019533,2]
[362156272,1748041847807,-430.0,0.00019533,2]
[362156273,1748041847816,-400.99236051,0.00019533,2]
[362156274,1748041847826,-450.0,0.00019533,2]
[362156275,1748041847836,-430.0,0.00019533,2]
[362156276,1748041847846,-430.0,0.00019533,2]
[362156278,1748041847855,-430.0,0.00019533,2]
[362156279,1748041847864,-430.0,0.00019533,2]
[362156280,1748041847874,-430.0,0.00019533,2]
[362156281,1748041847883,-430.0,0.00019533,2]
[362156282,1748041847893,-430.0,0.00019533,2]
[362156283,1748041847903,-430.0,0.00019533,2]
[362156285,1748041847912,-400.0,0.00019533,2]
[362156286,1748041847922,-500.0,0.00019533,2]
[362156287,1748041847932,-500.0,0.00019533,2]
[362156288,1748041847942,-500.0,0.00019533,2]
[362156289,1748041847951,-500.0,0.00019533,2]
[362156290,1748041847960,-500.0,0.00019533,2]
[362156291,1748041847970,-430.0,0.00019533,2]
[362156292,1748041847979,-430.0,0.00019533,2]
[362156293,1748041847988,-430.0,0.00019533,2]
[362156294,1748041847998,-430.0,0.00019533,2]
[362156295,1748041848008,-430.0,0.00019533,2]
[362156296,1748041848018,-430.0,0.00019533,2]
[362156297,1748041848028,-430.0,0.00019533,2]
[362156298,1748041848038,-450.0,0.00019533,2]
[362156300,1748041848048,-430.0,0.00019533,2]
[362156301,1748041848058,-430.0,0.00019533,2]
[362156302,1748041848068,-430.0,0.00019533,2]
[362156303,1748041848078,-500.0,0.00019534,2]
[362156304,1748041848088,-257.88,0.00019535,2]
[362156305,1748041848098,-430.0,0.00019635,2]
[362156306,1748041848108,-430.0,0.00019635,2]
[362156307,1748041848119,-430.0,0.00019635,2]
[362156308,1748041848128,-430.0,0.00019635,2]
[362156309,1748041848138,-430.0,0.00019635,2]
[362156310,1748041848148,-430.0,0.00019635,2]
[362156311,1748041848158,-595.25,0.00019635,2]
[362156312,1748041848168,-430.0,0.00019635,2]
[362156313,1748041848178,-431.07,0.00019635,2]
[362156314,1748041848189,-430.0,0.00019635,2]
[362156315,1748041848198,-430.0,0.00019635,2]
[362156316,1748041848210,-430.0,0.00019635,2]
[362156317,1748041848220,-430.0,0.00019635,2]
[362156318,1748041848230,-430.0,0.00019635,2]
[362156319,1748041848240,-430.0,0.00019635,2]
[362156320,1748041848249,-430.0,0.00019636,2]
[362156321,1748041848260,-430.0,0.00019636,2]
[362156322,1748041848270,-430.0,0.00019636,2]
[362156323,1748041848280,-430.0,0.00019636,2]
[362156325,1748041848290,-430.0,0.00019636,2]
[362156326,1748041848299,-430.0,0.00019636,2]
[362156327,1748041848309,-430.0,0.00019636,2]
[362156328,1748041848319,-430.0,0.00019636,2]
[362156329,1748041848329,-430.0,0.00019636,2]
[362156330,1748041848339,-430.0,0.00019636,2]
[362156331,1748041848348,-451.03,0.00019636,2]
[362156332,1748041848358,-430.0,0.00019636,2]
[362156333,1748041848368,-430.0,0.00019636,2]
[362156334,1748041848377,-430.0,0.00019636,2]
[362156335,1748041848387,-430.0,0.00019637,2]
[362156336,1748041848397,-430.0,0.00019637,2]
[362156337,1748041848407,-545.27,0.00019637,2]
[362156338,1748041848417,-430.0,0.00019637,2]
[362156339,1748041848428,-430.0,0.00019637,2]
[362156340,1748041848559,-430.0,0.00019637,2]
[362156341,1748041848571,-216.35,0.00019638,2]
[362156343,1748041848581,-437.74,0.00019638,2]
[362156344,1748041848591,-430.0,0.00019638,2]
[362156345,1748041848604,-430.0,0.00019638,2]
[362156346,1748041848614,-430.0,0.00019638,2]
[362156347,1748041848623,-430.0,0.00019638,2]
[362156348,1748041848635,-430.0,0.00019638,2]
[362156349,1748041848644,-430.0,0.00019638,2]
[362156350,1748041848654,-290.21,0.00019638,2]
[362156351,1748041848664,-291.92,0.00019638,2]
[362156352,1748041848675,-330.16,0.00019638,2]
[362156353,1748041848685,-430.0,0.00019638,2]
[362156354,1748041848694,-474.68,0.00019638,2]
[362156355,1748041848705,-430.0,0.00019638,2]
[362156356,1748041848714,-430.0,0.00019638,2]
[362156357,1748041848723,-430.0,0.00019638,2]
[362156358,1748041848733,-430.0,0.00019638,2]
[362156359,1748041848743,-500.0,0.00019638,2]
[362156360,1748041848752,-430.0,0.00019638,2]
[362156361,1748041848761,-377.4,0.00019638,2]
[362156362,1748041848770,-430.0,0.00019638,2]
[362156363,1748041848781,-430.0,0.00019638,2]
[362156364,1748041848791,-430.0,0.00019638,2]
[362156366,1748041848801,-260.27332379,0.00019638,2]
[362156367,1748041848810,-430.0,0.00019638,2]
[362156368,1748041848820,-355.22,0.00019638,2]
[362156369,1748041848829,-430.0,0.00019638,2]
[362156370,1748041848839,-430.0,0.00019638,2]
[362156371,1748041848849,-430.0,0.00019638,2]
[362156372,1748041848859,-430.0,0.0001964,2]
[362156373,1748041848868,-3927.96278659,0.0001965,2]
[362156374,1748041848878,-294.79944703,0.00019728,2]
[362156375,1748041848888,-430.0,0.00019807,2]
[362156376,1748041848897,-430.0,0.00019807,2]
[362156377,1748041848907,-470.0,0.00019807,2]
[362156378,1748041848916,-484.32024471,0.00019807,2]
[362156379,1748041848926,-430.0,0.00019807,2]
[362156380,1748041848936,-470.0,0.00019807,2]
[362156381,1748041848946,-430.0,0.00019807,2]
[362156382,1748041848955,-430.0,0.00019807,2]
[362156383,1748041848965,-420.0,0.00019819,2]
[362156384,1748041848975,-430.0,0.00019909,2]
[362156385,1748041848984,-430.0,0.00019909,2]
[362156386,1748041848994,-471.93,0.00019909,2]
[362156387,1748041849003,-430.0,0.00019909,2]
[362156388,1748041849013,-430.0,0.00019909,2]
[362156389,1748041849023,-389.55,0.00019909,2]
[362156391,1748041849032,-595.25,0.00019909,2]
[362156392,1748041849041,-430.0,0.00019909,2]
[362156393,1748041849051,-431.07,0.00019909,2]
[362156394,1748041849060,-509.46,0.00019909,2]
[362156395,1748041849070,-430.0,0.00019909,2]
[362156396,1748041849079,-430.0,0.00019909,2]
[362156397,1748041849088,-430.0,0.00019909,2]
[362156398,1748041849098,-430.0,0.00019909,2]
[362156399,1748041849107,-430.0,0.0001991,2]
[362156400,1748041849117,-430.0,0.0001991,2]
[362156401,1748041849127,-430.0,0.0001991,2]
[362156402,1748041849137,-430.0,0.0001991,2]
[362156403,1748041849147,-442.25,0.0001991,2]
[362156404,1748041849158,-430.0,0.0001991,2]
[362156405,1748041849168,-430.0,0.0001991,2]
[362156406,1748041849178,-430.0,0.0001991,2]
[362156407,1748041849187,-430.0,0.0001991,2]
[362156408,1748041849198,-430.0,0.0001991,2]
[362156409,1748041849207,-536.07,0.0001991,2]
[362156410,1748041849217,-430.0,0.0001991,2]
[362156411,1748041849226,-430.0,0.0001991,2]
[362156412,1748041849236,-430.0,0.00019911,2]
[362156413,1748041849247,-211.18,0.00019911,2]
[362156414,1748041849256,-545.27,0.00019911,2]
[362156415,1748041849266,-430.0,0.00019911,2]
[362156417,1748041849276,-483.99,0.00019911,2]
[362156418,1748041849286,-430.0,0.00019911,2]
[362156419,1748041849295,-309.87,0.00019912,2]
[362156420,1748041849305,-441.9,0.00019912,2]
[362156421,1748041849315,-430.0,0.00019912,2]
[362156422,1748041849325,-430.0,0.00019912,2]
[362156423,1748041849335,-238.76,0.00019912,2]
[362156424,1748041849345,-430.0,0.00019912,2]
[362156425,1748041849354,-474.68,0.00019912,2]
[362156426,1748041849364,-430.0,0.00019912,2]
[362156427,1748041849374,-430.0,0.00019912,2]
[362156428,1748041849383,-430.0,0.00019912,2]
[362156429,1748041849393,-234.03,0.00019912,2]
[362156430,1748041849403,-500.0,0.00019912,2]
[362156431,1748041849412,-430.0,0.00019912,2]
[362156432,1748041849422,-430.0,0.00019912,2]
[362156433,1748041849432,-430.0,0.00019912,2]
[362156434,1748041849443,-430.0,0.00019912,2]
[362156435,1748041849452,-389.11,0.00019912,2]
[362156436,1748041849462,-430.0,0.00019912,2]
[362156437,1748041849472,-430.0,0.00019912,2]
[362156438,1748041849482,-430.0,0.00019912,2]
[362156439,1748041849492,-430.0,0.00019914,2]
[362156440,1748041849502,-294.79944703,0.00019934,2]
[362156441,1748041849512,-2233.0,0.00019965,2]
[362156442,1748041849522,-707.0,0.00019965,2]
[362156443,1748041849532,-294.79944703,0.00020141,2]
[362156445,1748041849542,-371.42,0.00020183,2]
[362156446,1748041849551,-416.03,0.00020183,2]
[362156447,1748041849561,-430.0,0.00020183,2]
[362156448,1748041849571,-430.0,0.00020183,2]
[362156449,1748041849582,-595.25,0.00020183,2]
[362156450,1748041849593,-270.0,0.00020183,2]
[362156451,1748041849603,-431.07,0.00020183,2]
[362156452,1748041849613,-430.0,0.00020183,2]
[362156453,1748041849623,-430.0,0.00020183,2]
[362156454,1748041849634,-430.0,0.00020183,2]
[362156455,1748041849646,-430.0,0.00020183,2]
[362156457,1748041849655,-430.0,0.00020184,2]
[362156458,1748041849665,-502.13,0.00020184,2]
[362156459,1748041849676,-430.0,0.00020184,2]
[362156460,1748041849686,-430.0,0.00020184,2]
[362156461,1748041849699,-430.0,0.00020184,2]
[362156462,1748041849709,-430.0,0.00020184,2]
[362156463,1748041849719,-430.0,0.00020184,2]
[362156464,1748041849731,-430.0,0.00020184,2]
[362156465,1748041849740,-430.0,0.00020184,2]
[362156466,1748041849750,-205.73,0.00020184,2]
[362156467,1748041849760,-521.3,0.00020184,2]
[362156468,1748041849770,-430.0,0.00020185,2]
[362156469,1748041849780,-545.27,0.00020185,2]
[362156471,1748041849790,-430.0,0.00020185,2]
[362156472,1748041849799,-430.0,0.00020185,2]
[362156473,1748041849811,-430.0,0.00020186,2]
[362156474,1748041849820,-430.0,0.00020186,2]
[362156475,1748041849830,-430.0,0.00020186,2]
[362156476,1748041849839,-474.68,0.00020186,2]
[362156477,1748041849849,-430.0,0.00020186,2]
[362156478,1748041849859,-430.0,0.00020186,2]